{"text_format":"2","workbook":"xlsx","n_sheets":2,"sheets":["Chi phí dự kiến","Tổng hợp"],"not_rendered":{"charts":1,"images":0,"macros":0,"external_links":0,"defined_names":0,"comments":0,"pivot_tables":0},"unopened":[],"bounds":{"document_bytes":16777216,"sheet_cells":100000,"run_cost":"one","rows_first":2000,"rows_last":500,"rows_between":2000,"halvings":0,"cell_chars":16384,"cell_head_chars":4096},"cells_cut":0,"cells_raw":0,"read":"whole","date_system":"1900"}

{"sheet":"Chi phí dự kiến","index":0,"n_rows":340,"n_cols":12,"rows_kept":340,"cut":false,"hidden":false,"merged":[[316,0,316,11],[318,1,318,11],[337,0,337,11],[7,0,7,10],[271,0,271,11],[273,1,273,11],[292,0,292,11],[296,0,296,11],[297,1,297,11],[210,1,210,11],[229,0,229,11],[231,1,231,11],[250,0,250,11],[252,1,252,11],[165,1,165,11],[184,0,184,11],[186,1,186,11],[205,0,205,11],[209,0,209,11],[120,1,120,11],[139,0,139,11],[141,1,141,11],[160,0,160,11],[164,0,164,11],[75,1,75,11],[94,0,94,11],[96,1,96,11],[115,0,115,11],[119,0,119,11],[31,0,31,11],[33,1,33,11],[52,0,52,11],[54,1,54,11],[73,0,73,11],[1,1,1,10],[4,8,4,10],[9,0,9,11],[11,0,11,11],[12,1,12,11]]}
[]
[null,"BIỂU MẪU SỐ 04/ĐGTĐ-SCM. TÍNH CHI PHÍ TUÂN THỦ THỦ TỤC HÀNH CHÍNH TRONG DỰ ÁN, DỰ THẢO  VĂN BẢN"]
[]
[]
[null,"BỘ CÔNG AN",{"$nulls":6},"Biểu mẫu 04/ĐGTĐ-SCM"]
[]
[]
["CHI PHÍ TUÂN THỦ THỦ TỤC HÀNH CHÍNH TRONG DỰ ÁN, DỰ THẢO"]
[]
["TÊN DỰ THẢO VĂN BẢN: LUẬT AN NINH DỮ LIỆU "]
[]
["THỦ TỤC HÀNH CHÍNH 1: Thẩm định, cấp phép hệ thống, công nghệ và dịch vụ dữ liệu trước khi triển khai"]
["1.a","(Đăng ký, khai báo Danh mục dữ liệu quốc gia)"]
["I.","CHI PHÍ THỰC HIỆN TTHC DỰ KIẾN BAN HÀNH MỚI"]
[]
["STT","Các công việc \nkhi thực hiện TTHC","Các hoạt động/ cách thức thực hiện cụ thể","Thời gian thực hiện (giờ)","Mức TNBQ/ 01 giờ làm việc (đồng)","Mức chi phí thuê tư vấn, dịch vụ (đồng)","Mức phí, lệ phí, chi phí khác (đồng)","Số lần thực hiện/ 01 năm","Số lượng đối tượng tuân thủ/01 năm","Chi phí thực hiện TTHC (đồng)","Tổng chi phí thực hiện TTHC/\n01 năm (đồng)","Ghi chú"]
[1,"Chuẩn bị hồ sơ"]
[null,"Cơ quan, tổ chức, cá nhân xử lý dữ liệu thuộc Danh mục kiểm kê, phân loại và khai báo với Bộ Công an","Chuẩn bị hồ sơ",4,58228,null,0,1,5000,{"$f":"G18+F18+(D18*E18)","v":232912},{"$f":"J18*I18*H18","v":1164560000}]
[2,"Nộp hồ sơ","Trực tiếp",0.5,58228,null,0,1,5000,29114,145570000]
[null,null,"Bưu chính",0,58228,null,0,1,0,0,0]
[null,null,"Điện tử",0.25,58228,null,0,1,5000,14557,72785000]
[3,"Nộp phí, lệ phí, chi phí khác",null,null,58228,null,0,1,5000,0,0]
["3.1","Phí",null,0,58228,null,0,1,5000,0,0]
["3.2","Lệ phí",null,0,58228,null,0,1,5000,0,0]
["3.3","Chi phí khác",null,0,58228,null,0,1,5000,0,0]
[4,"Chuẩn bị, phục vụ việc kiểm tra, đánh giá của cơ quan có thẩm quyền (nếu có)",null,0,58228,null,0,1,5000,0,0]
[5,"Công việc khác (nếu có)",null,0,58228,null,0,1,5000,0,0]
[6,"Nhận kết quả","Trực tiếp",0,58228,null,0,1,5000,0,0]
[null,null,"Bưu chính",0,58228,null,0,1,0,0,0]
[null,null,"Điện tử",0.1,58228,null,0,1,5000,5822.8,29114000]
[null,"TỔNG 1.a",null,null,null,{"$f":"SUM(F17:F27)","v":0},{"$f":"SUM(G17:G27)","v":0},null,null,{"$f":"SUM(J17:J30)","v":282405.8},{"$f":"SUM(K17:K30)","v":1412029000}]
["Ghi chú giả định số liệu: Doanh nghiệp siêu nhỏ, nhỏ và vừa không xử lý dữ liệu quy mô lớn được miễn trừ theo Điều 13 (Khoản 3) của dự thảo Luật."]
[]
["1.b","(Thẩm định an ninh hệ thống, hoạt động đầu tư và chuyển giao công nghệ)"]
["I.","CHI PHÍ THỰC HIỆN TTHC DỰ KIẾN BAN HÀNH MỚI"]
[]
["STT","Các công việc \nkhi thực hiện TTHC","Các hoạt động/ cách thức thực hiện cụ thể","Thời gian thực hiện (giờ)","Mức TNBQ/ 01 giờ làm việc (đồng)","Mức chi phí thuê tư vấn, dịch vụ (đồng)","Mức phí, lệ phí, chi phí khác (đồng)","Số lần thực hiện/ 01 năm","Số lượng đối tượng tuân thủ/01 năm","Chi phí thực hiện TTHC (đồng)","Tổng chi phí thực hiện TTHC/\n01 năm (đồng)","Ghi chú"]
[1,"Chuẩn bị hồ sơ"]
[null,"Chủ đầu tư lập hồ sơ mô tả hệ thống, phương án bảo đảm an ninh, tài liệu kỹ thuật dự án đầu tư, chuyển giao công nghệ","Chuẩn bị hồ sơ",32,58228,8000000,0,1,800,{"$f":"G39+F39+(D39*E39)","v":9863296},{"$f":"J39*I39*H39","v":7890636800}]
[2,"Nộp hồ sơ","Trực tiếp",0.5,58228,null,0,1,800,29114,23291200]
[null,null,"Bưu chính",0,58228,null,0,1,0,0,0]
[null,null,"Điện tử",0.25,58228,null,0,1,800,14557,11645600]
[3,"Nộp phí, lệ phí, chi phí khác",null,null,58228,null,0,1,800,0,0]
["3.1","Phí",null,0,58228,null,0,1,800,0,0]
["3.2","Lệ phí",null,0,58228,null,0,1,800,0,0]
["3.3","Chi phí khác",null,0,58228,null,0,1,800,0,0]
[4,"Chuẩn bị, phục vụ việc kiểm tra, đánh giá của cơ quan có thẩm quyền (nếu có)",null,0,58228,null,0,1,800,0,0]
[5,"Công việc khác (nếu có)",null,0,58228,null,0,1,800,0,0]
[6,"Nhận kết quả","Trực tiếp",2,58228,null,0,1,800,116456,93164800]
[null,null,"Bưu chính",0,58228,null,0,1,0,0,0]
[null,null,"Điện tử",0.1,58228,null,0,1,800,5822.8,4658240]
[null,"TỔNG 1.b",null,null,null,{"$f":"SUM(F38:F48)","v":8000000},{"$f":"SUM(G38:G48)","v":0},null,null,{"$f":"SUM(J38:J51)","v":10029245.800000001},{"$f":"SUM(K38:K51)","v":8023396640}]
["Ghi chú giả định số liệu: Đã tính chi phí thuê tư vấn kỹ thuật, pháp lý chuẩn bị hồ sơ khoảng 8.000.000 đồng/hồ sơ; áp dụng cơ chế thẩm định kép liên thông với an ninh mạng theo Điều 14 để giảm trùng lặp."]
[]
["1.c","(Đăng ký hoạt động môi giới, cung cấp sàn giao dịch dữ liệu)"]
["I.","CHI PHÍ THỰC HIỆN TTHC DỰ KIẾN BAN HÀNH MỚI"]
[]
["STT","Các công việc \nkhi thực hiện TTHC","Các hoạt động/ cách thức thực hiện cụ thể","Thời gian thực hiện (giờ)","Mức TNBQ/ 01 giờ làm việc (đồng)","Mức chi phí thuê tư vấn, dịch vụ (đồng)","Mức phí, lệ phí, chi phí khác (đồng)","Số lần thực hiện/ 01 năm","Số lượng đối tượng tuân thủ/01 năm","Chi phí thực hiện TTHC (đồng)","Tổng chi phí thực hiện TTHC/\n01 năm (đồng)","Ghi chú"]
[1,"Chuẩn bị hồ sơ"]
[null,"Tổ chức chuẩn bị hồ sơ đăng ký, phương án bảo đảm an ninh hệ thống sàn giao dịch","Chuẩn bị hồ sơ",24,58228,3000000,0,1,50,{"$f":"G60+F60+(D60*E60)","v":4397472},{"$f":"J60*I60*H60","v":219873600}]
[2,"Nộp hồ sơ","Trực tiếp",0.5,58228,null,0,1,50,29114,1455700]
[null,null,"Bưu chính",0,58228,null,0,1,0,0,0]
[null,null,"Điện tử",0.25,58228,null,0,1,50,14557,727850]
[3,"Nộp phí, lệ phí, chi phí khác",null,null,58228,null,0,1,50,0,0]
["3.1","Phí",null,0,58228,null,0,1,50,0,0]
["3.2","Lệ phí",null,0,58228,null,0,1,50,0,0]
["3.3","Chi phí khác",null,0,58228,null,0,1,50,0,0]
[4,"Chuẩn bị, phục vụ việc kiểm tra, đánh giá của cơ quan có thẩm quyền (nếu có)",null,0,58228,null,0,1,50,0,0]
[5,"Công việc khác (nếu có)",null,0,58228,null,0,1,50,0,0]
[6,"Nhận kết quả","Trực tiếp",1,58228,null,0,1,50,58228,2911400]
[null,null,"Bưu chính",0,58228,null,0,1,0,0,0]
[null,null,"Điện tử",0.1,58228,null,0,1,50,5822.8,291140]
[null,"TỔNG 1.c",null,null,null,{"$f":"SUM(F59:F69)","v":3000000},{"$f":"SUM(G59:G69)","v":0},null,null,{"$f":"SUM(J59:J72)","v":4505193.8},{"$f":"SUM(K59:K72)","v":225259690}]
["Ghi chú giả định số liệu: Đã tính chi phí thuê tư vấn xây dựng phương án an ninh hệ thống khoảng 3.000.000 đồng/hồ sơ."]
[]
["1.d","(Cấp Giấy chứng nhận đủ điều kiện an ninh, trật tự kinh doanh dịch vụ dữ liệu)"]
["I.","CHI PHÍ THỰC HIỆN TTHC DỰ KIẾN BAN HÀNH MỚI"]
[]
["STT","Các công việc \nkhi thực hiện TTHC","Các hoạt động/ cách thức thực hiện cụ thể","Thời gian thực hiện (giờ)","Mức TNBQ/ 01 giờ làm việc (đồng)","Mức chi phí thuê tư vấn, dịch vụ (đồng)","Mức phí, lệ phí, chi phí khác (đồng)","Số lần thực hiện/ 01 năm","Số lượng đối tượng tuân thủ/01 năm","Chi phí thực hiện TTHC (đồng)","Tổng chi phí thực hiện TTHC/\n01 năm (đồng)","Ghi chú"]
[1,"Chuẩn bị hồ sơ"]
[null,"Doanh nghiệp chuẩn bị hồ sơ đăng ký kinh doanh có điều kiện, lý lịch tư pháp người chịu trách nhiệm","Chuẩn bị hồ sơ",16,58228,null,0,1,300,{"$f":"G81+F81+(D81*E81)","v":931648},{"$f":"J81*I81*H81","v":279494400}]
[2,"Nộp hồ sơ","Trực tiếp",0.5,58228,null,0,1,300,29114,8734200]
[null,null,"Bưu chính",0,58228,null,0,1,0,0,0]
[null,null,"Điện tử",0.25,58228,null,0,1,300,14557,4367100]
[3,"Nộp phí, lệ phí, chi phí khác",null,null,58228,null,0,1,300,0,0]
["3.1","Phí",null,0,58228,null,0,1,300,0,0]
["3.2","Lệ phí",null,0,58228,null,0,1,300,0,0]
["3.3","Chi phí khác",null,0,58228,null,0,1,300,0,0]
[4,"Chuẩn bị, phục vụ việc kiểm tra, đánh giá của cơ quan có thẩm quyền (nếu có)",null,0,58228,null,0,1,300,0,0]
[5,"Công việc khác (nếu có)",null,0,58228,null,0,1,300,0,0]
[6,"Nhận kết quả","Trực tiếp",1,58228,null,0,1,300,58228,17468400]
[null,null,"Bưu chính",0,58228,null,0,1,0,0,0]
[null,null,"Điện tử",0.1,58228,null,0,1,300,5822.8,1746840]
[null,"TỔNG 1.d",null,null,null,{"$f":"SUM(F80:F90)","v":0},{"$f":"SUM(G80:G90)","v":0},null,null,{"$f":"SUM(J80:J93)","v":1039369.8},{"$f":"SUM(K80:K93)","v":311810940}]
["Ghi chú giả định số liệu: Mức phí, lệ phí cụ thể do Bộ Tài chính quy định khi ban hành văn bản hướng dẫn thi hành."]
[]
["1.e","(Cấp phép tham gia cơ chế thử nghiệm có kiểm soát (Sandbox))"]
["I.","CHI PHÍ THỰC HIỆN TTHC DỰ KIẾN BAN HÀNH MỚI"]
[]
["STT","Các công việc \nkhi thực hiện TTHC","Các hoạt động/ cách thức thực hiện cụ thể","Thời gian thực hiện (giờ)","Mức TNBQ/ 01 giờ làm việc (đồng)","Mức chi phí thuê tư vấn, dịch vụ (đồng)","Mức phí, lệ phí, chi phí khác (đồng)","Số lần thực hiện/ 01 năm","Số lượng đối tượng tuân thủ/01 năm","Chi phí thực hiện TTHC (đồng)","Tổng chi phí thực hiện TTHC/\n01 năm (đồng)","Ghi chú"]
[1,"Chuẩn bị hồ sơ"]
[null,"Tổ chức, doanh nghiệp lập hồ sơ đăng ký, thuyết minh kỹ thuật giải pháp và phương án kiểm soát rủi ro","Chuẩn bị hồ sơ",24,58228,4000000,0,1,100,{"$f":"G102+F102+(D102*E102)","v":5397472},{"$f":"J102*I102*H102","v":539747200}]
[2,"Nộp hồ sơ","Trực tiếp",0.5,58228,null,0,1,100,29114,2911400]
[null,null,"Bưu chính",0,58228,null,0,1,0,0,0]
[null,null,"Điện tử",0.25,58228,null,0,1,100,14557,1455700]
[3,"Nộp phí, lệ phí, chi phí khác",null,null,58228,null,0,1,100,0,0]
["3.1","Phí",null,0,58228,null,0,1,100,0,0]
["3.2","Lệ phí",null,0,58228,null,0,1,100,0,0]
["3.3","Chi phí khác",null,0,58228,null,0,1,100,0,0]
[4,"Chuẩn bị, phục vụ việc kiểm tra, đánh giá của cơ quan có thẩm quyền (nếu có)",null,0,58228,null,0,1,100,0,0]
[5,"Công việc khác (nếu có)",null,0,58228,null,0,1,100,0,0]
[6,"Nhận kết quả","Trực tiếp",1,58228,null,0,1,100,58228,5822800]
[null,null,"Bưu chính",0,58228,null,0,1,0,0,0]
[null,null,"Điện tử",0.1,58228,null,0,1,100,5822.8,582280]
[null,"TỔNG 1.e",null,null,null,{"$f":"SUM(F101:F111)","v":4000000},{"$f":"SUM(G101:G111)","v":0},null,null,{"$f":"SUM(J101:J114)","v":5505193.7999999998},{"$f":"SUM(K101:K114)","v":550519380}]
["Ghi chú giả định số liệu: Đã tính chi phí thuê tư vấn xây dựng thuyết minh kỹ thuật khoảng 4.000.000 đồng/hồ sơ."]
[]
[null,"TỔNG NHÓM (THỦ TỤC 1)",{"$nulls":8},{"$f":"K31+K52+K73+K94+K115","v":10523015650}]
[]
["THỦ TỤC HÀNH CHÍNH 2: Chứng nhận, công nhận đạt chuẩn an ninh dữ liệu đối với sản phẩm và nhân lực"]
["2.a","(Cấp Chứng nhận hợp quy sản phẩm, dịch vụ công nghệ an ninh dữ liệu)"]
["I.","CHI PHÍ THỰC HIỆN TTHC DỰ KIẾN BAN HÀNH MỚI"]
[]
["STT","Các công việc \nkhi thực hiện TTHC","Các hoạt động/ cách thức thực hiện cụ thể","Thời gian thực hiện (giờ)","Mức TNBQ/ 01 giờ làm việc (đồng)","Mức chi phí thuê tư vấn, dịch vụ (đồng)","Mức phí, lệ phí, chi phí khác (đồng)","Số lần thực hiện/ 01 năm","Số lượng đối tượng tuân thủ/01 năm","Chi phí thực hiện TTHC (đồng)","Tổng chi phí thực hiện TTHC/\n01 năm (đồng)","Ghi chú"]
[1,"Chuẩn bị hồ sơ"]
[null,"Doanh nghiệp chuẩn bị hồ sơ kỹ thuật, kết quả thử nghiệm sản phẩm để đề nghị cấp chứng nhận hợp quy","Chuẩn bị hồ sơ",24,58228,5000000,0,1,150,{"$f":"G126+F126+(D126*E126)","v":6397472},{"$f":"J126*I126*H126","v":959620800}]
[2,"Nộp hồ sơ","Trực tiếp",0.5,58228,null,0,1,150,29114,4367100]
[null,null,"Bưu chính",0,58228,null,0,1,0,0,0]
[null,null,"Điện tử",0.25,58228,null,0,1,150,14557,2183550]
[3,"Nộp phí, lệ phí, chi phí khác",null,null,58228,null,0,1,150,0,0]
["3.1","Phí",null,0,58228,null,0,1,150,0,0]
["3.2","Lệ phí",null,0,58228,null,0,1,150,0,0]
["3.3","Chi phí khác",null,0,58228,null,0,1,150,0,0]
[4,"Chuẩn bị, phục vụ việc kiểm tra, đánh giá của cơ quan có thẩm quyền (nếu có)",null,0,58228,null,0,1,150,0,0]
[5,"Công việc khác (nếu có)",null,0,58228,null,0,1,150,0,0]
[6,"Nhận kết quả","Trực tiếp",1,58228,null,0,1,150,58228,8734200]
[null,null,"Bưu chính",0,58228,null,0,1,0,0,0]
[null,null,"Điện tử",0.1,58228,null,0,1,150,5822.8,873420]
[null,"TỔNG 2.a",null,null,null,{"$f":"SUM(F125:F135)","v":5000000},{"$f":"SUM(G125:G135)","v":0},null,null,{"$f":"SUM(J125:J138)","v":6505193.7999999998},{"$f":"SUM(K125:K138)","v":975779070}]
["Ghi chú giả định số liệu: Đã tính chi phí thuê tổ chức thử nghiệm kỹ thuật độc lập (khoảng 5.000.000 đồng/hồ sơ); mức phí, lệ phí thẩm định cụ thể do Bộ Tài chính quy định."]
[]
["2.b","(Cấp, công nhận Chứng chỉ chuyên môn về an ninh dữ liệu)"]
["I.","CHI PHÍ THỰC HIỆN TTHC DỰ KIẾN BAN HÀNH MỚI"]
[]
["STT","Các công việc \nkhi thực hiện TTHC","Các hoạt động/ cách thức thực hiện cụ thể","Thời gian thực hiện (giờ)","Mức TNBQ/ 01 giờ làm việc (đồng)","Mức chi phí thuê tư vấn, dịch vụ (đồng)","Mức phí, lệ phí, chi phí khác (đồng)","Số lần thực hiện/ 01 năm","Số lượng đối tượng tuân thủ/01 năm","Chi phí thực hiện TTHC (đồng)","Tổng chi phí thực hiện TTHC/\n01 năm (đồng)","Ghi chú"]
[1,"Chuẩn bị hồ sơ"]
[null,"Cá nhân chuẩn bị hồ sơ, tham gia sát hạch hoặc đề nghị công nhận chứng chỉ quốc tế tương đương","Chuẩn bị hồ sơ",8,58228,null,0,1,15000,{"$f":"G147+F147+(D147*E147)","v":465824},{"$f":"J147*I147*H147","v":6987360000}]
[2,"Nộp hồ sơ","Trực tiếp",0.5,58228,null,0,1,15000,29114,436710000]
[null,null,"Bưu chính",0,58228,null,0,1,0,0,0]
[null,null,"Điện tử",0.25,58228,null,0,1,15000,14557,218355000]
[3,"Nộp phí, lệ phí, chi phí khác",null,null,58228,null,500000,1,15000,500000,7500000000]
["3.1","Phí",null,0,58228,null,0,1,15000,0,0]
["3.2","Lệ phí",null,0,58228,null,500000,1,15000,500000,7500000000]
["3.3","Chi phí khác",null,0,58228,null,0,1,15000,0,0]
[4,"Chuẩn bị, phục vụ việc kiểm tra, đánh giá của cơ quan có thẩm quyền (nếu có)",null,0,58228,null,0,1,15000,0,0]
[5,"Công việc khác (nếu có)",null,0,58228,null,0,1,15000,0,0]
[6,"Nhận kết quả","Trực tiếp",0,58228,null,0,1,15000,0,0]
[null,null,"Bưu chính",0,58228,null,0,1,0,0,0]
[null,null,"Điện tử",0.1,58228,null,0,1,15000,5822.8,87342000]
[null,"TỔNG 2.b",null,null,null,{"$f":"SUM(F146:F156)","v":0},{"$f":"SUM(G146:G156)","v":1000000},null,null,{"$f":"SUM(J146:J159)","v":1515317.8},{"$f":"SUM(K146:K159)","v":22729767000}]
["Ghi chú giả định số liệu: Ước tính theo số nhân sự vận hành hệ thống Cấp độ 3, 4 trên toàn quốc cần hoàn thiện chứng chỉ trong giai đoạn chuyển tiếp; đã tính lệ phí sát hạch khoảng 500.000 đồng/người, được miễn nếu có chứng chỉ quốc tế tương đương."]
[]
[null,"TỔNG NHÓM (THỦ TỤC 2)",{"$nulls":8},{"$f":"K139+K160","v":23705546070}]
[]
["THỦ TỤC HÀNH CHÍNH 3: Phê duyệt ngoại lệ đặc biệt đối với dữ liệu Cốt lõi, Quan trọng"]
["3.a","(Cấp phép giao dịch, mua bán dữ liệu Cốt lõi, Quan trọng trong trường hợp đặc biệt)"]
["I.","CHI PHÍ THỰC HIỆN TTHC DỰ KIẾN BAN HÀNH MỚI"]
[]
["STT","Các công việc \nkhi thực hiện TTHC","Các hoạt động/ cách thức thực hiện cụ thể","Thời gian thực hiện (giờ)","Mức TNBQ/ 01 giờ làm việc (đồng)","Mức chi phí thuê tư vấn, dịch vụ (đồng)","Mức phí, lệ phí, chi phí khác (đồng)","Số lần thực hiện/ 01 năm","Số lượng đối tượng tuân thủ/01 năm","Chi phí thực hiện TTHC (đồng)","Tổng chi phí thực hiện TTHC/\n01 năm (đồng)","Ghi chú"]
[1,"Chuẩn bị hồ sơ"]
[null,"Tổ chức, cá nhân lập hồ sơ đề nghị, kèm thỏa thuận giao dịch dự kiến và đánh giá tác động an ninh liên quan","Chuẩn bị hồ sơ",40,58228,10000000,0,1,10,{"$f":"G171+F171+(D171*E171)","v":12329120},{"$f":"J171*I171*H171","v":123291200}]
[2,"Nộp hồ sơ","Trực tiếp",0.5,58228,null,0,1,10,29114,291140]
[null,null,"Bưu chính",0,58228,null,0,1,0,0,0]
[null,null,"Điện tử",0.25,58228,null,0,1,10,14557,145570]
[3,"Nộp phí, lệ phí, chi phí khác",null,null,58228,null,0,1,10,0,0]
["3.1","Phí",null,0,58228,null,0,1,10,0,0]
["3.2","Lệ phí",null,0,58228,null,0,1,10,0,0]
["3.3","Chi phí khác",null,0,58228,null,0,1,10,0,0]
[4,"Chuẩn bị, phục vụ việc kiểm tra, đánh giá của cơ quan có thẩm quyền (nếu có)",null,0,58228,null,0,1,10,0,0]
[5,"Công việc khác (nếu có)",null,0,58228,null,0,1,10,0,0]
[6,"Nhận kết quả","Trực tiếp",2,58228,null,0,1,10,116456,1164560]
[null,null,"Bưu chính",0,58228,null,0,1,0,0,0]
[null,null,"Điện tử",0.1,58228,null,0,1,10,5822.8,58228]
[null,"TỔNG 3.a",null,null,null,{"$f":"SUM(F170:F180)","v":10000000},{"$f":"SUM(G170:G180)","v":0},null,null,{"$f":"SUM(J170:J183)","v":12495069.800000001},{"$f":"SUM(K170:K183)","v":124950698}]
["Ghi chú giả định số liệu: Thủ tục hiếm gặp, tính chất phức tạp; đã tính chi phí thuê tư vấn pháp lý, kỹ thuật khoảng 10.000.000 đồng/hồ sơ."]
[]
["3.b","(Phê duyệt của Thủ tướng Chính phủ đối với trường hợp đặc biệt xử lý dữ liệu Cốt lõi)"]
["I.","CHI PHÍ THỰC HIỆN TTHC DỰ KIẾN BAN HÀNH MỚI"]
[]
["STT","Các công việc \nkhi thực hiện TTHC","Các hoạt động/ cách thức thực hiện cụ thể","Thời gian thực hiện (giờ)","Mức TNBQ/ 01 giờ làm việc (đồng)","Mức chi phí thuê tư vấn, dịch vụ (đồng)","Mức phí, lệ phí, chi phí khác (đồng)","Số lần thực hiện/ 01 năm","Số lượng đối tượng tuân thủ/01 năm","Chi phí thực hiện TTHC (đồng)","Tổng chi phí thực hiện TTHC/\n01 năm (đồng)","Ghi chú"]
[1,"Chuẩn bị hồ sơ"]
[null,"Cơ quan chủ quản lập hồ sơ trình Thủ tướng Chính phủ, kèm ý kiến thẩm định của Bộ Công an/Bộ Quốc phòng","Chuẩn bị hồ sơ",40,58228,null,0,1,5,{"$f":"G192+F192+(D192*E192)","v":2329120},{"$f":"J192*I192*H192","v":11645600}]
[2,"Nộp hồ sơ","Trực tiếp",0.5,58228,null,0,1,5,29114,145570]
[null,null,"Bưu chính",0,58228,null,0,1,0,0,0]
[null,null,"Điện tử",0.25,58228,null,0,1,5,14557,72785]
[3,"Nộp phí, lệ phí, chi phí khác",null,null,58228,null,0,1,5,0,0]
["3.1","Phí",null,0,58228,null,0,1,5,0,0]
["3.2","Lệ phí",null,0,58228,null,0,1,5,0,0]
["3.3","Chi phí khác",null,0,58228,null,0,1,5,0,0]
[4,"Chuẩn bị, phục vụ việc kiểm tra, đánh giá của cơ quan có thẩm quyền (nếu có)",null,0,58228,null,0,1,5,0,0]
[5,"Công việc khác (nếu có)",null,0,58228,null,0,1,5,0,0]
[6,"Nhận kết quả","Trực tiếp",2,58228,null,0,1,5,116456,582280]
[null,null,"Bưu chính",0,58228,null,0,1,0,0,0]
[null,null,"Điện tử",0.1,58228,null,0,1,5,5822.8,29114]
[null,"TỔNG 3.b",null,null,null,{"$f":"SUM(F191:F201)","v":0},{"$f":"SUM(G191:G201)","v":0},null,null,{"$f":"SUM(J191:J204)","v":2495069.7999999998},{"$f":"SUM(K191:K204)","v":12475349}]
["Ghi chú giả định số liệu: Thủ tục áp dụng cho số lượng rất hạn chế trường hợp đặc biệt phục vụ lợi ích tối cao quốc gia."]
[]
[null,"TỔNG NHÓM (THỦ TỤC 3)",{"$nulls":8},{"$f":"K184+K205","v":137426047}]
[]
["THỦ TỤC HÀNH CHÍNH 4: Thẩm định, cấp văn bản chấp thuận an ninh khi chuyển dữ liệu Quan trọng, Cốt lõi ra nước ngoài"]
["4.a","(Thẩm định, cấp văn bản chấp thuận an ninh khi chuyển dữ liệu Quan trọng, Cốt lõi ra nước ngoài)"]
["I.","CHI PHÍ THỰC HIỆN TTHC DỰ KIẾN BAN HÀNH MỚI"]
[]
["STT","Các công việc \nkhi thực hiện TTHC","Các hoạt động/ cách thức thực hiện cụ thể","Thời gian thực hiện (giờ)","Mức TNBQ/ 01 giờ làm việc (đồng)","Mức chi phí thuê tư vấn, dịch vụ (đồng)","Mức phí, lệ phí, chi phí khác (đồng)","Số lần thực hiện/ 01 năm","Số lượng đối tượng tuân thủ/01 năm","Chi phí thực hiện TTHC (đồng)","Tổng chi phí thực hiện TTHC/\n01 năm (đồng)","Ghi chú"]
[1,"Chuẩn bị hồ sơ"]
[null,"Tổ chức lập hồ sơ đề nghị, kèm hợp đồng/thỏa thuận chuyển dữ liệu và đánh giá tác động an ninh dữ liệu xuyên biên giới","Chuẩn bị hồ sơ",24,58228,5000000,0,1,200,{"$f":"G216+F216+(D216*E216)","v":6397472},{"$f":"J216*I216*H216","v":1279494400}]
[2,"Nộp hồ sơ","Trực tiếp",0.5,58228,null,0,1,200,29114,5822800]
[null,null,"Bưu chính",0,58228,null,0,1,0,0,0]
[null,null,"Điện tử",0.25,58228,null,0,1,200,14557,2911400]
[3,"Nộp phí, lệ phí, chi phí khác",null,null,58228,null,0,1,200,0,0]
["3.1","Phí",null,0,58228,null,0,1,200,0,0]
["3.2","Lệ phí",null,0,58228,null,0,1,200,0,0]
["3.3","Chi phí khác",null,0,58228,null,0,1,200,0,0]
[4,"Chuẩn bị, phục vụ việc kiểm tra, đánh giá của cơ quan có thẩm quyền (nếu có)",null,0,58228,null,0,1,200,0,0]
[5,"Công việc khác (nếu có)",null,0,58228,null,0,1,200,0,0]
[6,"Nhận kết quả","Trực tiếp",1,58228,null,0,1,200,58228,11645600]
[null,null,"Bưu chính",0,58228,null,0,1,0,0,0]
[null,null,"Điện tử",0.1,58228,null,0,1,200,5822.8,1164560]
[null,"TỔNG 4.a",null,null,null,{"$f":"SUM(F215:F225)","v":5000000},{"$f":"SUM(G215:G225)","v":0},null,null,{"$f":"SUM(J215:J228)","v":6505193.7999999998},{"$f":"SUM(K215:K228)","v":1301038760}]
["Ghi chú giả định số liệu: Đã tính chi phí thuê tư vấn pháp lý quốc tế khoảng 5.000.000 đồng/hồ sơ."]
[]
["4.b","(Đăng ký Hợp đồng tiêu chuẩn (SCC) bảo vệ dữ liệu khi chuyển ra nước ngoài)"]
["I.","CHI PHÍ THỰC HIỆN TTHC DỰ KIẾN BAN HÀNH MỚI"]
[]
["STT","Các công việc \nkhi thực hiện TTHC","Các hoạt động/ cách thức thực hiện cụ thể","Thời gian thực hiện (giờ)","Mức TNBQ/ 01 giờ làm việc (đồng)","Mức chi phí thuê tư vấn, dịch vụ (đồng)","Mức phí, lệ phí, chi phí khác (đồng)","Số lần thực hiện/ 01 năm","Số lượng đối tượng tuân thủ/01 năm","Chi phí thực hiện TTHC (đồng)","Tổng chi phí thực hiện TTHC/\n01 năm (đồng)","Ghi chú"]
[1,"Chuẩn bị hồ sơ"]
[null,"Doanh nghiệp áp dụng mẫu Hợp đồng tiêu chuẩn do Bộ Công an ban hành, gửi đăng ký với Bộ Công an","Chuẩn bị hồ sơ",8,58228,null,0,1,1000,{"$f":"G237+F237+(D237*E237)","v":465824},{"$f":"J237*I237*H237","v":465824000}]
[2,"Nộp hồ sơ","Trực tiếp",0.5,58228,null,0,1,1000,29114,29114000]
[null,null,"Bưu chính",0,58228,null,0,1,0,0,0]
[null,null,"Điện tử",0.25,58228,null,0,1,1000,14557,14557000]
[3,"Nộp phí, lệ phí, chi phí khác",null,null,58228,null,0,1,1000,0,0]
["3.1","Phí",null,0,58228,null,0,1,1000,0,0]
["3.2","Lệ phí",null,0,58228,null,0,1,1000,0,0]
["3.3","Chi phí khác",null,0,58228,null,0,1,1000,0,0]
[4,"Chuẩn bị, phục vụ việc kiểm tra, đánh giá của cơ quan có thẩm quyền (nếu có)",null,0,58228,null,0,1,1000,0,0]
[5,"Công việc khác (nếu có)",null,0,58228,null,0,1,1000,0,0]
[6,"Nhận kết quả","Trực tiếp",0,58228,null,0,1,1000,0,0]
[null,null,"Bưu chính",0,58228,null,0,1,0,0,0]
[null,null,"Điện tử",0.1,58228,null,0,1,1000,5822.8,5822800]
[null,"TỔNG 4.b",null,null,null,{"$f":"SUM(F236:F246)","v":0},{"$f":"SUM(G236:G246)","v":0},null,null,{"$f":"SUM(J236:J249)","v":515317.8},{"$f":"SUM(K236:K249)","v":515317800}]
["Ghi chú giả định số liệu: Chi phí thấp do sử dụng mẫu hợp đồng chuẩn có sẵn, không phải tự soạn thảo hoặc thuê tư vấn riêng."]
[]
["4.c","(Cấp Giấy chứng nhận hợp quy an ninh dữ liệu xuyên biên giới)"]
["I.","CHI PHÍ THỰC HIỆN TTHC DỰ KIẾN BAN HÀNH MỚI"]
[]
["STT","Các công việc \nkhi thực hiện TTHC","Các hoạt động/ cách thức thực hiện cụ thể","Thời gian thực hiện (giờ)","Mức TNBQ/ 01 giờ làm việc (đồng)","Mức chi phí thuê tư vấn, dịch vụ (đồng)","Mức phí, lệ phí, chi phí khác (đồng)","Số lần thực hiện/ 01 năm","Số lượng đối tượng tuân thủ/01 năm","Chi phí thực hiện TTHC (đồng)","Tổng chi phí thực hiện TTHC/\n01 năm (đồng)","Ghi chú"]
[1,"Chuẩn bị hồ sơ"]
[null,"Tổ chức chuẩn bị báo cáo đánh giá an ninh độc lập và chính sách bảo mật xuyên biên giới","Chuẩn bị hồ sơ",16,58228,3000000,0,1,150,{"$f":"G258+F258+(D258*E258)","v":3931648},{"$f":"J258*I258*H258","v":589747200}]
[2,"Nộp hồ sơ","Trực tiếp",0.5,58228,null,0,1,150,29114,4367100]
[null,null,"Bưu chính",0,58228,null,0,1,0,0,0]
[null,null,"Điện tử",0.25,58228,null,0,1,150,14557,2183550]
[3,"Nộp phí, lệ phí, chi phí khác",null,null,58228,null,0,1,150,0,0]
["3.1","Phí",null,0,58228,null,0,1,150,0,0]
["3.2","Lệ phí",null,0,58228,null,0,1,150,0,0]
["3.3","Chi phí khác",null,0,58228,null,0,1,150,0,0]
[4,"Chuẩn bị, phục vụ việc kiểm tra, đánh giá của cơ quan có thẩm quyền (nếu có)",null,0,58228,null,0,1,150,0,0]
[5,"Công việc khác (nếu có)",null,0,58228,null,0,1,150,0,0]
[6,"Nhận kết quả","Trực tiếp",1,58228,null,0,1,150,58228,8734200]
[null,null,"Bưu chính",0,58228,null,0,1,0,0,0]
[null,null,"Điện tử",0.1,58228,null,0,1,150,5822.8,873420]
[null,"TỔNG 4.c",null,null,null,{"$f":"SUM(F257:F267)","v":3000000},{"$f":"SUM(G257:G267)","v":0},null,null,{"$f":"SUM(J257:J270)","v":4039369.8},{"$f":"SUM(K257:K270)","v":605905470}]
["Ghi chú giả định số liệu: Đã tính chi phí thuê đơn vị đánh giá an ninh độc lập khoảng 3.000.000 đồng/hồ sơ."]
[]
["4.d","(Báo cáo định kỳ hằng năm về hoạt động chuyển dữ liệu ra nước ngoài)"]
["I.","CHI PHÍ THỰC HIỆN TTHC DỰ KIẾN BAN HÀNH MỚI"]
[]
["STT","Các công việc \nkhi thực hiện TTHC","Các hoạt động/ cách thức thực hiện cụ thể","Thời gian thực hiện (giờ)","Mức TNBQ/ 01 giờ làm việc (đồng)","Mức chi phí thuê tư vấn, dịch vụ (đồng)","Mức phí, lệ phí, chi phí khác (đồng)","Số lần thực hiện/ 01 năm","Số lượng đối tượng tuân thủ/01 năm","Chi phí thực hiện TTHC (đồng)","Tổng chi phí thực hiện TTHC/\n01 năm (đồng)","Ghi chú"]
[1,"Chuẩn bị hồ sơ"]
[null,"Tổ chức lập báo cáo tổng hợp khối lượng, loại dữ liệu đã chuyển trong kỳ và cơ chế pháp lý áp dụng","Chuẩn bị hồ sơ",4,58228,null,0,1,1200,{"$f":"G279+F279+(D279*E279)","v":232912},{"$f":"J279*I279*H279","v":279494400}]
[2,"Nộp hồ sơ","Trực tiếp",0.5,58228,null,0,1,1200,29114,34936800]
[null,null,"Bưu chính",0,58228,null,0,1,0,0,0]
[null,null,"Điện tử",0.25,58228,null,0,1,1200,14557,17468400]
[3,"Nộp phí, lệ phí, chi phí khác",null,null,58228,null,0,1,1200,0,0]
["3.1","Phí",null,0,58228,null,0,1,1200,0,0]
["3.2","Lệ phí",null,0,58228,null,0,1,1200,0,0]
["3.3","Chi phí khác",null,0,58228,null,0,1,1200,0,0]
[4,"Chuẩn bị, phục vụ việc kiểm tra, đánh giá của cơ quan có thẩm quyền (nếu có)",null,0,58228,null,0,1,1200,0,0]
[5,"Công việc khác (nếu có)",null,0,58228,null,0,1,1200,0,0]
[6,"Nhận kết quả","Trực tiếp",0,58228,null,0,1,1200,0,0]
[null,null,"Bưu chính",0,58228,null,0,1,0,0,0]
[null,null,"Điện tử",0.1,58228,null,0,1,1200,5822.8,6987360]
[null,"TỔNG 4.d",null,null,null,{"$f":"SUM(F278:F288)","v":0},{"$f":"SUM(G278:G288)","v":0},null,null,{"$f":"SUM(J278:J291)","v":282405.8},{"$f":"SUM(K278:K291)","v":338886960}]
["Ghi chú giả định số liệu: Áp dụng cơ chế hậu kiểm, chi phí thấp hơn đáng kể so với tiền kiểm toàn bộ."]
[]
[null,"TỔNG NHÓM (THỦ TỤC 4)",{"$nulls":8},{"$f":"K229+K250+K271+K292","v":2761148990}]
[]
["THỦ TỤC HÀNH CHÍNH 5: Quy trình báo cáo và xác nhận khôi phục kết nối sau sự cố an ninh dữ liệu"]
["5.a","(Báo cáo, thông báo sự cố an ninh dữ liệu)"]
["I.","CHI PHÍ THỰC HIỆN TTHC DỰ KIẾN BAN HÀNH MỚI"]
[]
["STT","Các công việc \nkhi thực hiện TTHC","Các hoạt động/ cách thức thực hiện cụ thể","Thời gian thực hiện (giờ)","Mức TNBQ/ 01 giờ làm việc (đồng)","Mức chi phí thuê tư vấn, dịch vụ (đồng)","Mức phí, lệ phí, chi phí khác (đồng)","Số lần thực hiện/ 01 năm","Số lượng đối tượng tuân thủ/01 năm","Chi phí thực hiện TTHC (đồng)","Tổng chi phí thực hiện TTHC/\n01 năm (đồng)","Ghi chú"]
[1,"Chuẩn bị hồ sơ"]
[null,"Chủ quản dữ liệu lập báo cáo ban đầu (24 giờ) và báo cáo đầy đủ (72 giờ) theo mẫu","Chuẩn bị hồ sơ",4,58228,null,0,1,2000,{"$f":"G303+F303+(D303*E303)","v":232912},{"$f":"J303*I303*H303","v":465824000}]
[2,"Nộp hồ sơ","Trực tiếp",0.5,58228,null,0,1,2000,29114,58228000]
[null,null,"Bưu chính",0,58228,null,0,1,0,0,0]
[null,null,"Điện tử",0.25,58228,null,0,1,2000,14557,29114000]
[3,"Nộp phí, lệ phí, chi phí khác",null,null,58228,null,0,1,2000,0,0]
["3.1","Phí",null,0,58228,null,0,1,2000,0,0]
["3.2","Lệ phí",null,0,58228,null,0,1,2000,0,0]
["3.3","Chi phí khác",null,0,58228,null,0,1,2000,0,0]
[4,"Chuẩn bị, phục vụ việc kiểm tra, đánh giá của cơ quan có thẩm quyền (nếu có)",null,0,58228,null,0,1,2000,0,0]
[5,"Công việc khác (nếu có)",null,0,58228,null,0,1,2000,0,0]
[6,"Nhận kết quả","Trực tiếp",0,58228,null,0,1,2000,0,0]
[null,null,"Bưu chính",0,58228,null,0,1,0,0,0]
[null,null,"Điện tử",0.1,58228,null,0,1,2000,5822.8,11645600]
[null,"TỔNG 5.a",null,null,null,{"$f":"SUM(F302:F312)","v":0},{"$f":"SUM(G302:G312)","v":0},null,null,{"$f":"SUM(J302:J315)","v":282405.8},{"$f":"SUM(K302:K315)","v":564811600}]
["Ghi chú giả định số liệu: Số lượng ước tính theo số sự cố an ninh dữ liệu phải báo cáo hằng năm; thời gian tính theo yêu cầu khẩn cấp của thủ tục."]
[]
["5.b","(Xác nhận đủ điều kiện an toàn để khôi phục kết nối hệ thống sau sự cố)"]
["I.","CHI PHÍ THỰC HIỆN TTHC DỰ KIẾN BAN HÀNH MỚI"]
[]
["STT","Các công việc \nkhi thực hiện TTHC","Các hoạt động/ cách thức thực hiện cụ thể","Thời gian thực hiện (giờ)","Mức TNBQ/ 01 giờ làm việc (đồng)","Mức chi phí thuê tư vấn, dịch vụ (đồng)","Mức phí, lệ phí, chi phí khác (đồng)","Số lần thực hiện/ 01 năm","Số lượng đối tượng tuân thủ/01 năm","Chi phí thực hiện TTHC (đồng)","Tổng chi phí thực hiện TTHC/\n01 năm (đồng)","Ghi chú"]
[1,"Chuẩn bị hồ sơ"]
[null,"Cơ quan, tổ chức lập báo cáo kỹ thuật khắc phục sự cố, biên bản kiểm tra nội bộ","Chuẩn bị hồ sơ",8,58228,null,0,1,150,{"$f":"G324+F324+(D324*E324)","v":465824},{"$f":"J324*I324*H324","v":69873600}]
[2,"Nộp hồ sơ","Trực tiếp",0.5,58228,null,0,1,150,29114,4367100]
[null,null,"Bưu chính",0,58228,null,0,1,0,0,0]
[null,null,"Điện tử",0.25,58228,null,0,1,150,14557,2183550]
[3,"Nộp phí, lệ phí, chi phí khác",null,null,58228,null,0,1,150,0,0]
["3.1","Phí",null,0,58228,null,0,1,150,0,0]
["3.2","Lệ phí",null,0,58228,null,0,1,150,0,0]
["3.3","Chi phí khác",null,0,58228,null,0,1,150,0,0]
[4,"Chuẩn bị, phục vụ việc kiểm tra, đánh giá của cơ quan có thẩm quyền (nếu có)",null,0,58228,null,0,1,150,0,0]
[5,"Công việc khác (nếu có)",null,0,58228,null,0,1,150,0,0]
[6,"Nhận kết quả","Trực tiếp",1,58228,null,0,1,150,58228,8734200]
[null,null,"Bưu chính",0,58228,null,0,1,0,0,0]
[null,null,"Điện tử",0.1,58228,null,0,1,150,5822.8,873420]
[null,"TỔNG 5.b",null,null,null,{"$f":"SUM(F323:F333)","v":0},{"$f":"SUM(G323:G333)","v":0},null,null,{"$f":"SUM(J323:J336)","v":573545.80000000005},{"$f":"SUM(K323:K336)","v":86031870}]
["Ghi chú giả định số liệu: Số lượng ước tính theo số sự cố an ninh dữ liệu nghiêm trọng xảy ra hằng năm."]
[]
[null,"TỔNG NHÓM (THỦ TỤC 5)",{"$nulls":8},{"$f":"K316+K337","v":650843470}]

{"sheet":"Tổng hợp","index":1,"n_rows":12,"n_cols":6,"rows_kept":12,"cut":false,"hidden":false,"merged":[[0,0,0,5],[1,0,1,5],[9,0,9,1],[11,0,11,5]]}
["BẢNG TỔNG HỢP CHI PHÍ TUÂN THỦ THỦ TỤC HÀNH CHÍNH"]
["DỰ THẢO LUẬT AN NINH DỮ LIỆU (05 nhóm thủ tục hành chính)"]
[]
["STT","Tên thủ tục hành chính","Chi phí tuân thủ dự kiến/năm (đồng)","Tỷ trọng (%)","Xếp hạng","Ghi chú"]
[1,"Thẩm định, cấp phép hệ thống, công nghệ và dịch vụ dữ liệu trước khi triển khai",{"$f":"'Chi phí dự kiến'!K118","v":10523015650},{"$f":"C5/$C$10","v":0.2785489215349628},{"$f":"RANK(C5,$C$5:$C$9)","v":2}]
[2,"Chứng nhận, công nhận đạt chuẩn an ninh dữ liệu đối với sản phẩm và nhân lực",{"$f":"'Chi phí dự kiến'!K163","v":23705546070},{"$f":"C6/$C$10","v":0.62749638619000592},{"$f":"RANK(C6,$C$5:$C$9)","v":1}]
[3,"Phê duyệt ngoại lệ đặc biệt đối với dữ liệu Cốt lõi, Quan trọng",{"$f":"'Chi phí dự kiến'!K208","v":137426047},{"$f":"C7/$C$10","v":3.6377288085343781E-3},{"$f":"RANK(C7,$C$5:$C$9)","v":5}]
[4,"Thẩm định, cấp văn bản chấp thuận an ninh khi chuyển dữ liệu Quan trọng, Cốt lõi ra nước ngoài",{"$f":"'Chi phí dự kiến'!K295","v":2761148990},{"$f":"C8/$C$10","v":7.3088846291115409E-2},{"$f":"RANK(C8,$C$5:$C$9)","v":3}]
[5,"Quy trình báo cáo và xác nhận khôi phục kết nối sau sự cố an ninh dữ liệu",{"$f":"'Chi phí dự kiến'!K340","v":650843470},{"$f":"C9/$C$10","v":1.7228117175381464E-2},{"$f":"RANK(C9,$C$5:$C$9)","v":4}]
["TỔNG CỘNG",null,{"$f":"SUM(C5:C9)","v":37777980227},1]
[]
["Ghi chú: Thủ tục 2 (Chứng nhận, công nhận đạt chuẩn sản phẩm và nhân lực) chiếm tỷ trọng chi phí lớn nhất (62,7%), chủ yếu do cấu phần chứng chỉ chuyên môn áp dụng cho quy mô lớn nhân sự vận hành hệ thống Cấp độ 3, Cấp độ 4 trên toàn quốc; Thủ tục 1 (Thẩm định, cấp phép hệ thống, công nghệ và dịch vụ dữ liệu trước khi triển khai) đứng thứ hai (27,9%) do chi phí tư vấn kỹ thuật cao. Đây là 02 nhóm cần ưu tiên áp dụng phương án giảm chi phí tuân thủ (công nhận chứng chỉ quốc tế, lộ trình chuyển tiếp, cơ chế một cửa liên thông) đã đề xuất tại Bản đánh giá thủ tục hành chính."]